Cogmind - Beta 14 @@@ ROGUE MODE // 2024.09.09 @ 13:45:44 Player: BadFPS Result: Destroyed by Autobeam Turret with Autobeam Performance ------------- Evolutions (0) 0 Regions Visited (2) 400 Robots Destroyed (37) 185 Value Destroyed (784) 784 Prototype IDs (0) 0 Alien Tech Used (0) 0 Bonus (0) 0 TOTAL SCORE: 1369 Bonus ------- None Cogmind --------- Core Integrity 0/250 Matter 99/300 Energy 249/250 System Corruption 1% Temperature Cool (24) Movement Rolling (120) Ox1 Location -10/Subcaves Parts ------- > --- POWER (1) -------- Ion Engine > --- PROPULSION (2) --- Subdweller Monowheel > --- UTILITY (2) ------ Large Storage Unit Signal Interpreter > --- WEAPON (2) ------- Subdweller Shrapnel Launcher > --- INVENTORY (15) --- Subdweller Power Source Aluminum Leg Subdweller Optics Sensor Array ECM Suite Hacking Suite EM Pulse Gun EM Pulse Gun Subdweller Machine Gun Mining Laser Peak State ------------ > --- POWER ------------ Ion Engine > --- PROPULSION ------- Subdweller Monowheel Subdweller Monowheel > --- UTILITY ---------- Large Storage Unit Signal Interpreter > --- WEAPON ----------- Medium Laser Assault Rifle > --- INVENTORY -------- Ion Engine Subdweller Power Source Aluminum Leg Aluminum Leg Subdweller Optics Sensor Array ECM Suite Hacking Suite EM Pulse Gun EM Pulse Gun Subdweller Machine Gun Grenade Launcher Subdweller Shrapnel Launcher Mining Laser [Rating: 11] Favorites ----------- Power Ion Engine Engine Ion Engine Propulsion Light Treads Treads Light Treads Leg Aluminum Leg Wheel Subdweller Monowheel Utility Large Storage Unit Device Seismic Detector Storage Large Storage Unit Processor Signal Interpreter Protection Light Armor Plating Weapon Assault Rifle Energy Gun Medium Laser Ballistic Gun Assault Rifle Ballistic Cannon Light Cannon Launcher Grenade Launcher Special Weapon Mining Laser Build | -11 -10 -10 ------- Run | Yrd Mat Sub Slots Evolved . | . . . Power . | . . . Propulsion . | . . . Utility . | . . . Weapon . | . . . Parts Attached 50 | 7 15 28 Power 4 | 1 2 1 Engine 4 | 1 2 1 Core . | . . . Reactor . | . . . Propulsion 9 | 2 3 4 Treads 5 | 2 3 . Leg 1 | . . 1 Wheel 3 | . . 3 Hover . | . . . Flight . | . . . Utility 9 | 2 6 1 Device 2 | 1 1 . Storage 3 | 1 2 . Processor 3 | . 2 1 Hackware . | . . . Protection 1 | . 1 . Artifact . | . . . Weapon 28 | 2 4 22 Energy Gun 8 | . 3 5 Energy Cannon . | . . . Ballistic Gun 11 | 2 1 8 Ballistic Cannon 1 | . . 1 Launcher 6 | . . 6 Special Weapon 2 | . . 2 Impact Weapon . | . . . Slashing Weapon . | . . . Piercing Weapon . | . . . Special Melee Weapon . | . . . Unidentified Prototypes . | . . . Parts Lost 9 | . 3 6 Power 1 | . . 1 Propulsion 2 | . 1 1 Utility 2 | . 2 . Weapon 4 | . . 4 Highest Loss Streak 4 | . 1 4 To Critical Strikes . | . . . Average Slot Usage (%) 98 | . 98 99 Engine 14 | . 14 14 Treads 21 | . 27 14 Leg 2 | . . 5 Wheel 3 | . . 7 Device 3 | . 5 . Storage 14 | . 14 14 Processor 10 | . 7 14 Energy Gun 10 | . 10 10 Ballistic Gun 14 | . 17 9 Ballistic Cannon 1 | . . 3 Launcher 1 | . . 2 Peak Build Rating 11 | 7 8 11 Average Rating 8 | 5 7 9 On Entrance 5 | . 7 8 Naked Turns . | . . . Heaviest Build 36 | 15 32 36 Greatest Support 40 | 40 40 40 Greatest Overweight (x) 9 | 2 . 9 Average Overweight (x) . | . . . Largest Inventory Capacity 15 | 8 15 15 Average Capacity 14 | 7 14 15 Most Carried 15 | 5 15 15 Average Carried 11 | 3 11 13 Final Capacity 15 | 8 15 15 Final Carried 15 | 5 15 10 Class Distribution -------------------- 100% | Mutant Dominant Class ---------------- Mutant | -10/Materials Mutant | -10/Subcaves Resources | -11 -10 -10 ----------- Run | Yrd Mat Sub Matter Collected 1155 | 258 492 405 Remotely . | . . . Salvage Created 1085 | 80 592 413 Parts 89 | 10 45 34 Haulers Intercepted 2 | . 2 . Recyclers Shooed 1 | . 1 . Parts Field Recycled . | . . . Retrieved Matter . | . . . Parts Self-Destructed 11 | . . 11 Prevented . | . . . Kills | -11 -10 -10 ------- Run | Yrd Mat Sub Combat Hostiles Destroyed 28 | . 14 14 Guns 19 | . 13 6 AOE 8 | . . 8 Classes Destroyed 7 | 1 5 1 Tunneler 3 | 3 . . Hauler 2 | . 2 . Operator 1 | . 1 . Watcher 3 | . 3 . Swarmer 13 | . 6 7 Grunt 8 | . 8 . Subdweller 7 | . . 7 Best Kill Streak 4 | 2 3 4 Combat Bots Only 4 | . 3 4 Max Kills in Single Turn 3 | 1 1 3 Gunslinging . | . . . Exploded 3 | . . 3 Melee . | . . . Uniques/NPCs Destroyed . | . . . Combat | -11 -10 -10 -------- Run | Yrd Mat Sub Hostile Shots Fired 184 | . 103 81 Missed 57 | . 36 21 Damage Taken 1753 | . 768 985 Core 255 | . 125 130 Absorbed by Shields . | . . . Regen/Repaired (Parts) 62 | . 62 . Core Remaining (%) 100 | 100 . . Volleys Fired 131 | 4 60 67 Largest 2 | 2 2 2 Hottest 100 | 40 80 100 Shots Fired 247 | 8 121 118 Gun 215 | 8 121 86 Cannon 6 | . . 6 Launcher 15 | . . 15 Special 11 | . . 11 Kinetic 149 | 8 102 39 Thermal 82 | . 9 73 Explosive 6 | . . 6 Electromagnetic 10 | . 10 . Robot Hit Streak 27 | 3 10 27 Robot Miss Streak 8 | 1 4 8 Penetration Max . | . . . Secondary Targets 1 | . 1 . Max Gunslinging Chain 1 | . 1 . Shots Hit Robots 157 | 5 75 77 Core Hits 68 | 3 32 33 Critical Kills . | . . . Critical Parts Destroyed 1 | . 1 . Critical Strikes 9 | . 4 5 Burn 8 | . 3 5 Destroy 1 | . 1 . Melee Attacks . | . . . Impact . | . . . Slashing . | . . . Piercing . | . . . Sneak Attacks . | . . . Combat Hostiles . | . . . Follow-up Attacks . | . . . Damage Inflicted 2636 | 63 946 1627 Guns 1927 | 63 946 918 Cannons 37 | . . 37 Explosions 672 | . . 672 Melee . | . . . Ramming . | . . . Kinetic 1436 | 63 753 620 Thermal 746 | . 87 659 Explosive 348 | . . 348 Electromagnetic 106 | . 106 . Impact . | . . . Slashing . | . . . Piercing . | . . . Highest Corruption 1 | . 1 1 Average Corruption 1 | . 1 1 Corruption Purged . | . . . Corruption Blocked . | . . . Effects 19 | . 10 9 Message Errors 3 | . . 3 Matter Fused 4 | . 2 2 Heat Flow Errors 5 | . 2 3 Energy Discharges 3 | . 2 1 Data Loss (minor) 3 | . 3 . Misfires 1 | . 1 . Overload Shots . | . . . Overflow Damage 32 | . . 32 Projectiles . | . . . Explosions 32 | . . 32 Melee . | . . . Knockbacks 1 | . . 1 Impact . | . . . Kinetic 1 | . . 1 Secondary . | . . . Self-Inflicted Damage 117 | . . 117 Shots 4 | . . 4 Rammed . | . . . Targets Rammed . | . . . Kicked . | . . . Crushed . | . . . Highest Temperature 259 | . 178 259 Average Temperature 62 | . 49 114 Received Heat Transfer 797 | . 258 539 Siege Activations . | . . . Robots Corrupted . | . . . Combat Hostiles . | . . . Parts Fried . | . . . Impact Corruptions . | . . . Robots Melted 1 | . 1 . Combat Hostiles 1 | . 1 . Parts Melted 4 | . . 4 Heat Transferred 2812 | . 481 2331 Parts Sabotaged . | . . . Parts Stolen . | . . . Parts Stripped . | . . . Power Chain Reactions . | . . . Alert | -11 -10 -10 ------- Run | Yrd Mat Sub Peak Influence 163 | 15 163 . Initial 9 | . 9 . Average 73 | 5 79 . Maximum Alert Level . | . . . Low Security (%) 100 | 100 100 . Level 1 . | . . . Level 2 . | . . . Level 3 . | . . . Level 4 . | . . . Level 5 . | . . . High Security . | . . . Max Security . | . . . Squads Dispatched 3 | . 3 . Investigation 2 | . 2 . Extermination . | . . . Reinforcement 1 | . 1 . Assault . | . . . Garrison . | . . . Intercept . | . . . Searches Triggered . | . . . Construction Impeded . | . . . Haulers Reinforced . | . . . Active Scanning Responses . | . . . Cargo Convoy Interrupts . | . . . Stealth | -11 -10 -10 --------- Run | Yrd Mat Sub Distress Signals . | . . . Communications Jammed . | . . . Distress Signals . | . . . Times Spotted 44 | . 25 19 Peak Tracking Total 6 | . 4 6 Tactical Retreats 5 | . 3 2 Traps | -11 -10 -10 ------- Run | Yrd Mat Sub Traps Triggered 4 | . 4 . Indirectly . | . . . Trap Hack Attempts . | . . . Triggered . | . . . Disarmed . | . . . Reprogrammed . | . . . Reused . | . . . Traps Extracted . | . . . Installed . | . . . Triggered . | . . . Machines | -11 -10 -10 ---------- Run | Yrd Mat Sub Machines Disabled 4 | . . 4 Max in Single Turn 2 | . . 2 Machines Repaired . | . . . Machines Dismantled . | . . . Machines Sabotaged . | . . . Overloaded Fab Kills . | . . . Hacking | -11 -10 -10 --------- Run | Yrd Mat Sub Machines Accessed 7 | . 7 . Terminals 5 | . 5 . Fabricators . | . . . Repair Stations 1 | . 1 . Recycling Units 1 | . 1 . Scanalyzers . | . . . Garrison Access . | . . . Total Hacks 18 | . 18 . Successful 8 | . 8 . Failed 10 | . 10 . Catastrophic . | . . . Database Lockouts . | . . . Manual 9 | . 9 . Terminals 13 | . 13 . Fabricators . | . . . Repair Stations 3 | . 3 . Recycling Units 2 | . 2 . Scanalyzers . | . . . Garrison Access . | . . . Terminal Hacks 2 | . 2 . Terminal Index 1 | . 1 . Locate Traps 1 | . 1 . Fabricator Hacks . | . . . Repair Station Hacks 2 | . 2 . Scan Component 1 | . 1 . Repair 1 | . 1 . Recycling Unit Hacks 2 | . 2 . Report Inventory 1 | . 1 . Retrieve Components 1 | . 1 . Scanalyzer . | . . . Garrison Access Hacks . | . . . Unauthorized Hacks 2 | . 2 . Terminals 2 | . 2 . Botnet 2 | . 2 . Fabricators . | . . . Repair Stations . | . . . Recycling Units . | . . . Scanalyzers . | . . . Garrison Access . | . . . Data Cores Recovered . | . . . Used . | . . . Hacking Detections 5 | . 5 . Full Trace Events 2 | . 2 . Feedback Events . | . . . Feedback Blocked . | . . . Robot Schematics Acquired . | . . . Robots Built . | . . . Authchips . | . . . Time . | . . . Total Robot Build Rating . | . . . Part Schematics Acquired . | . . . Parts Built . | . . . Authchips . | . . . Time . | . . . Total Part Build Rating . | . . . Parts Repaired 1 | . 1 . Time 26 | . 26 . Parts Recycled . | . . . Recycled Matter . | . . . Retrieved Matter . | . . . Retrieved Components 3 | . 3 . Parts Scanalyzed . | . . . Part Schematics Acquired . | . . . Parts Damaged . | . . . Bothacking | -11 -10 -10 ------------ Run | Yrd Mat Sub Used RIF Installer . | . . . Robots Hacked . | . . . Non-combat . | . . . Combat . | . . . Robot Hacks Applied . | . . . Relay Couplers Released . | . . . Fabnet Peak Effective % . | . . . Robots Rewired . | . . . Allies Hacked . | . . . Hacks Repelled . | . . . Allies | -11 -10 -10 -------- Run | Yrd Mat Sub Total Allies . | . . . Largest Group . | . . . Highest-Rated Group . | . . . Highest-Rated Ally . | . . . Total Orders . | . . . Ally Attacks . | . . . Total Damage . | . . . Kills . | . . . Allies Corrupted . | . . . Allies Melted . | . . . Intel | -11 -10 -10 ------- Run | Yrd Mat Sub Robot Analysis Total . | . . . Derelict Logs Recovered 2 | . . 2 Drone Launches . | . . . Drone Recoveries . | . . . Exploration | -11 -10 -10 ------------- Run | Yrd Mat Sub Turns Passed 3098 | 143 1671 1284 Spaces Moved 1630 | 74 826 730 Core 13 | 12 . 1 Treads 1175 | 62 826 287 Legs . | . . . Wheels 442 | . . 442 Hover . | . . . Flight . | . . . Fastest Speed 50 | 50 160 110 Average Speed 148 | 153 160 134 Slowest Speed 500 | 160 160 500 Overloaded Moves . | . . . Propulsion Burnouts . | . . . Robots Hopped . | . . . Cave-ins Triggered . | . . . Exploration Rate (%) 52 | 4 99 55 Regions Visited 2 Branch Regions 1 Pre-discovered Areas . | . . . Known Exits Taken . | . . . Unknown Exits Taken 2 | 1 1 . Scrap Searched . | . . . Spaces Dug . | . . . Terrain Destroyed 132 | . . 132 Melee . | . . . Projectile . | . . . AOE 132 | . . 132 Terrain Rammed . | . . . Walls Destroyed . | . . . Machines Disabled . | . . . Actions | -11 -10 -10 --------- Run | Yrd Mat Sub Total 2031 | 92 1056 883 Wait 174 | 3 126 45 Move 1628 | 73 825 730 Hop . | . . . Pick Up 30 | 5 20 5 Fast Attach 10 | 7 1 2 Attach 10 | . 4 6 Detach . | . . . Swap 30 | . 10 20 Drop 18 | . 10 8 Fire 131 | 4 60 67 Melee . | . . . Ram . | . . . Kick . | . . . Crush . | . . . Escape Stasis . | . . . Rewire . | . . . Trap . | . . . Miscellaneous . | . . . Route ------- -11/Scrapyard -10/Materials (discovered 5 exits: [*Mat x3] / [*Min] / [*Sub]) -10/Subcaves (discovered 3 exits: *Mat x2 / [*Rec]) History --------- Turn | Location | Event 22 | -11/Scrapyard | Discovered new exit (range 14) 144 | -11/Scrapyard | Entered Materials 302 | -10/Materials | Build established: Mutant 677 | -10/Materials | Discovered new exit (range 10) 1012 | -10/Materials | Discovered new exit (range 13) 1149 | -10/Materials | Discovered new exit (range 15) 1589 | -10/Materials | Repaired Lgt. Treads 1663 | -10/Materials | Discovered new exit (range 9) 1709 | -10/Materials | Discovered new exit (range 9) 1815 | -10/Materials | Entered Subcaves 1818 | -10/Subcaves | Discovered new exit (range 9) 1833 | -10/Subcaves | Identified exit to Materials 2084 | -10/Subcaves | Learned Materials security intel 2200 | -10/Subcaves | Learned 2 Materials zone layouts 2304 | -10/Subcaves | Core integrity fell below 50% 2859 | -10/Subcaves | Discovered exit to Materials (range 13) 3060 | -10/Subcaves | Discovered new exit (range 14) 3086 | -10/Subcaves | Core integrity fell below 20% 3099 | -10/Subcaves | Destroyed by Autobeam Turret with Autobeam Last Messages --------------- 02979_ Acquired 9 matter. 02982_ Acquired 10 matter. 02985_ Acquired 6 matter. 02992_ Acquired 5 matter. 03003_ Acquired 14 matter. 03034_ Acquired 7 matter. 03060_ EXIT=FOUND 03062_ S-10 Pest springs to life. 03063_ Destroyed Flight Unit. 03063_ S-10 Pest destroyed. 03064_ Grenade Launcher destroyed. 03068_ Machine disabled. 03075_ Lgt. Assault Rifle fries itself beyond repair. 03081_ Assault Rifle destroyed. 03082_ S-10 Pest destroyed. 03091_ Med. Laser destroyed. 03091_ Destroyed Med. Laser. 03093_ Machine disabled. 03099_ Aluminum Leg destroyed. Map ----- +----------------------------------------------------+ | ?????????????????# ## #?# ##??? | | ????????????????## ## ##?? | | ????????????###?# ### ##? | | ????????##### ### # #? | | ????????# ## ## #? | | ?????????# ## ##### #? | | ?????????# ### ##??## ##? | | ?????????# ####?#### ###### ##?? | | ?????##### ##????????## #?# #??? | | ????## ####????????###?# ##??? | | ???## #???????????## ##???? | | ???# ##???????????# ###??? | | ??## #?????######## ##?? | | ??# ##???## #?? | | ??# ## ##??# ###?? | | ## #?## ## #???? | | # ## #### ####### #???? | | #### ## ## ### ##???### ##??? | | ???# #### ### ####???##" "##?? | | ??# ???## #?## ##?????#" ""#?? | | ?# ????# ??# ##????#" "#?? | | ???? ?## ##???##" < "#?? | | ???? ?##### "" ??# " "##?? | | ## ????# ????# ""??##" "##?? | | ?# #????# ##???# #####""??# ### | | ?# ?????# ##????#; @ ;##??##??# # # # | | ?# ?????? ##?????# ;;#?????## # # | | ?? #?????? #??????#; ; """?# # | | ????????????? #?????#; ; "## | | ????????????? #?????# ; ## & | | ????????????? ????# % t ;###"" & "# | | ???????????????????# <## " "# | | ???????????????????# t ## | | ???????????????????## # ## # | | ????????????????????# #;; # #" # | | ????????????????????## ; ?####"" | | ?????????????????????# ##; ????### | | ?????????????????????# ##? ???????# | | ?????????????????????######??# ?????????# | | ??????????????????????????????##???????????# | | ???????????????????????????????????????????# ### | | ???????????????????????????????????????????###?### | | ?????????????????????????????????????????????????? | | ?????????????????????????????????????????????????? | | ?????????????????????????????????????????????????? | | ?????????????????????????????????????????????????? | | ?????????????????????????????????????????????????? | | ?????????????????????????????????????????????????? | | ?????????????????????????????????????????????????? | | ?????????????????????????????????????????????????? | +----------------------------------------------------+ Best States ------------- Heat Dissipation 25 Energy Generation 10 Energy Capacity 250 Matter Stores 300 Matter Capacity 300 Sight Range 16 Terrain Scan Density 10 Armor Coverage 150 Evasion (%) 40 Targeting Accuracy 5 Recoil Reduction 2 Item Schematics ----------------- None Robot Schematics ------------------ None Fabricated ------------ Nothing Alien Tech Used ----------------- None Achievements -------------- None Challenges ------------ None Game ------ Seed LightMissilePrototype Manual? 0 Play Time 00:27:58 Cumulative 29.7 hours Start 2024.09.09 @ 13:14:05 End 2024.09.09 @ 13:45:44 Sessions 1 Manual Loads 0 Difficulty Rogue Special Mode None Game No. 17 Rogue 17 Adventurer 0 Explorer 0 Win Type - Total 0 Types 0/0/0/0/0/0/0/0/0 Lore% 29 Gallery% 30 Achievement% 27 Wizard Run 0 Options --------- Layout 2 ASCII 0 Keyboard 0 Movement Mouse Keybinds 0 Fullscreen 1 Font 24/Smallcaps Map View 50x44 Zoom Use 0% Tactical HUD 1 Map Filters NONE Filters NONE Steam 1 RUN: 754afd2a-bc01-41fb-b4fa-f352b99fc55b